fUST/lending_fUST_20240824
["ID","MTS","AMOUNT","RATE_DAILY","PERIOD"]
[335751416,1724476262109,-151.0,0.00013972,2]
[335751417,1724476262119,-151.0,0.00013972,2]
[335751418,1724476262128,-2519.0,0.00013972,2]
[335751419,1724476262139,-500.0,0.00013972,2]
[335751420,1724476262150,-500.0,0.00013972,2]
[335751421,1724476262160,-644.14,0.00013972,2]
[335751422,1724476262170,-679.823101,0.00013972,2]
[335751423,1724476262181,-679.823101,0.00013972,2]
[335751424,1724476262190,-679.823101,0.00013972,2]
[335751425,1724476262199,-5798.0,0.00013972,2]
[335751426,1724476262210,-679.823101,0.00013972,2]
[335751427,1724476262222,-679.823101,0.00013972,2]
[335751428,1724476262232,-679.823101,0.00013972,2]
[335751429,1724476262242,-500.0,0.00013972,2]
[335751430,1724476262254,-1039.05,0.00013972,2]
[335751431,1724476262264,-524.57444368,0.00013972,2]
[335751432,1724476262274,-151.0,0.00013972,2]
[335751433,1724476262284,-151.0,0.00013972,2]
[335751434,1724476262296,-222.848774,0.00013972,2]
[335751435,1724476262307,-500.0,0.00013972,2]
[335751436,1724476262318,-1504.04,0.00013972,2]
[335751437,1724476262329,-1991.38,0.00013972,2]
[335751438,1724476262340,-577.65,0.00013972,2]
[335751439,1724476262358,-2602.81,0.00013972,2]
[335751440,1724476262367,-1111.16,0.00013972,2]
[335751441,1724476262377,-500.0,0.00013972,2]
[335751442,1724476262386,-500.0,0.00013972,2]
[335751443,1724476262395,-717.41,0.00013972,2]
[335751444,1724476262405,-10332.39,0.00013972,2]
[335751445,1724476262415,-500.0,0.00013972,2]
[335751446,1724476262425,-516.71,0.00013972,2]
[335751447,1724476262435,-690.27,0.00013972,2]
[335751448,1724476262446,-232.57120854,0.00013972,2]
[335751449,1724476262457,-500.0,0.00013972,2]
[335751450,1724476262467,-770.534569,0.00013972,2]
[335751451,1724476262477,-770.534569,0.00013972,2]
[335751452,1724476262487,-1520.92,0.00013972,2]
[335751453,1724476262497,-770.534569,0.00013972,2]
[335751454,1724476262506,-636.55,0.00013972,2]
[335751455,1724476262515,-500.0,0.00013972,2]
[335751456,1724476262525,-500.0,0.00013972,2]
[335751457,1724476262534,-770.534569,0.00013972,2]
[335751458,1724476262543,-770.534569,0.00013972,2]
[335751459,1724476262554,-770.534569,0.00013972,2]
[335751460,1724476262563,-500.0,0.00013972,2]
[335751461,1724476262572,-1471.4,0.00013972,2]
[335751462,1724476262582,-500.0,0.00013972,2]
[335751463,1724476262592,-2945.52,0.00013972,2]
[335751464,1724476262602,-561.87,0.00013972,2]
[335751465,1724476262612,-3439.97,0.00013972,2]
[335751466,1724476262622,-546.66878442,0.00013972,2]
[335751467,1724476262632,-3509.98,0.00013972,2]
[335751468,1724476262641,-5063.61,0.00013972,2]
[335751469,1724476262651,-500.0,0.00013972,2]
[335751470,1724476262660,-779.54,0.00013972,2]
[335751471,1724476262672,-527.63769833,0.00013972,2]
[335751472,1724476262683,-930.78,0.00013972,2]
[335751473,1724476262694,-1421.72,0.00013972,2]
[335751474,1724476262703,-1306.95,0.00013972,2]
[335751475,1724476262714,-500.0,0.00013972,2]
[335751476,1724476262723,-659.45,0.00013972,2]
[335751477,1724476262734,-622.11,0.00013972,2]
[335751478,1724476262745,-7365.31,0.00013972,2]
[335751479,1724476262764,-844.04,0.00013972,2]
[335751480,1724476262774,-763.37,0.00013972,2]
[335751481,1724476262783,-500.0,0.00013972,2]
[335751482,1724476262792,-3131.53,0.00013972,2]
[335751483,1724476262802,-500.0,0.00013972,2]
[335751484,1724476262811,-198.403384,0.00013972,2]
[335751485,1724476262820,-500.0,0.00013972,2]
[335751486,1724476262830,-198.403384,0.00013972,2]
[335751487,1724476262839,-198.403384,0.00013972,2]
[335751488,1724476262850,-766.62,0.00013972,2]
[335751489,1724476262859,-1481.334203,0.00013972,2]
[335751490,1724476262869,-1481.334203,0.00013972,2]
[335751491,1724476262879,-1481.334203,0.00013972,2]
[335751492,1724476262888,-14688.01,0.00013972,2]
[335751493,1724476262898,-500.0,0.00013972,2]
[335751494,1724476262907,-198.403384,0.00013972,2]
[335751495,1724476262916,-500.0,0.00013972,2]
[335751496,1724476262926,-198.403384,0.00013972,2]
[335751497,1724476262936,-500.0,0.00013972,2]
[335751498,1724476262946,-198.403384,0.00013972,2]
[335751499,1724476262956,-10587.27,0.00013972,2]
[335751500,1724476262965,-1481.334203,0.00013972,2]
[335751501,1724476262975,-1481.334203,0.00013972,2]
[335751502,1724476262985,-1481.334203,0.00013972,2]
[335751503,1724476262994,-500.0,0.00013972,2]
[335751504,1724476263006,-500.0,0.00013972,2]
[335751505,1724476263017,-1705.15,0.00013972,2]
[335751506,1724476263027,-500.0,0.00013972,2]
[335751507,1724476263037,-2196.42,0.00013972,2]
[335751508,1724476263047,-2032.72,0.00013972,2]
[335751509,1724476263057,-500.0,0.00013972,2]
[335751510,1724476263067,-2263.7,0.00013972,2]
[335751511,1724476263077,-718.74,0.00013972,2]
[335751512,1724476263087,-1290.36,0.00013972,2]
[335751513,1724476263097,-1782.14,0.00013972,2]
[335751514,1724476263107,-511.99630393,0.00013972,2]
[335751515,1724476263116,-151.0,0.00013972,2]
[335751516,1724476263125,-151.398704,0.00013972,2]
[335751517,1724476263135,-1696.02,0.00013972,2]
[335751518,1724476263145,-500.0,0.00013972,2]
[335751519,1724476263155,-2417.02,0.00013972,2]
[335751520,1724476263164,-500.0,0.00013972,2]
[335751521,1724476263174,-500.0,0.00013972,2]
[335751522,1724476263184,-1844.31,0.00013972,2]
[335751523,1724476263193,-500.0,0.00013972,2]
[335751524,1724476263202,-517.5,0.00013972,2]
[335751525,1724476263212,-10229.49,0.00013972,2]
[335751526,1724476263222,-2003.38,0.00013972,2]
[335751527,1724476263233,-152.236117,0.00013972,2]
[335751528,1724476263243,-500.0,0.00013972,2]
[335751529,1724476263253,-2363.95,0.00013972,2]
[335751530,1724476263263,-2161.33,0.00013972,2]
[335751531,1724476263272,-500.0,0.00013972,2]
[335751532,1724476263282,-3113.003741,0.00013972,2]
[335751533,1724476263290,-500.0,0.00013972,2]
[335751534,1724476263301,-500.0,0.00013972,2]
[335751535,1724476263311,-3113.003741,0.00013972,2]
[335751536,1724476263322,-3113.003741,0.00013972,2]
[335751537,1724476263331,-500.0,0.00013972,2]
[335751538,1724476263341,-772.08,0.00013972,2]
[335751539,1724476263351,-500.0,0.00013972,2]
[335751540,1724476263360,-500.0,0.00013972,2]
[335751541,1724476263370,-3113.003741,0.00013972,2]
[335751542,1724476263380,-3113.003741,0.00013972,2]
[335751543,1724476263390,-2854.06,0.00013972,2]
[335751544,1724476263399,-500.0,0.00013972,2]
[335751545,1724476263409,-3113.003741,0.00013972,2]
[335751546,1724476263418,-12943.03,0.00013972,2]
[335751547,1724476263428,-500.0,0.00013972,2]
[335751548,1724476263437,-500.0,0.00013972,2]
[335751549,1724476263447,-734.82,0.00013972,2]
[335751550,1724476263456,-981.08,0.00013972,2]
[335751551,1724476263466,-2349.32,0.00013972,2]
[335751552,1724476263476,-500.0,0.00013972,2]
[335751553,1724476263486,-500.0,0.00013972,2]
[335751554,1724476263495,-500.0,0.00013972,2]
[335751555,1724476263505,-500.0,0.00013972,2]
[335751556,1724476263515,-3421.37,0.00013972,2]
[335751557,1724476263525,-4611.35,0.00013972,2]
[335751558,1724476263535,-1977.39,0.00013972,2]
[335751559,1724476263546,-500.0,0.00013972,2]
[335751560,1724476263557,-654.88,0.00013972,2]
[335751561,1724476263566,-1975.72,0.00013972,2]
[335751562,1724476263576,-500.0,0.00013972,2]
[335751563,1724476263585,-987.1,0.00013972,2]
[335751564,1724476263594,-500.0,0.00013972,2]
[335751565,1724476263603,-500.0,0.00013972,2]
[335751566,1724476263612,-900.28,0.00013972,2]
[335751567,1724476263621,-1394.76,0.00013972,2]
[335751568,1724476263631,-500.0,0.00013972,2]
[335751569,1724476263640,-1397.91,0.00013972,2]
[335751570,1724476263650,-258.10822085,0.00013972,2]
[335751571,1724476263659,-503.17953657,0.00013972,2]
[335751572,1724476263672,-500.0,0.00013972,2]
[335751573,1724476263684,-6426.7,0.00013972,2]
[335751574,1724476263693,-626.08,0.00013972,2]
[335751575,1724476263703,-67.71916332,0.00013972,2]
[335751576,1724476264702,-3192.24,0.00013698,2]
[335751577,1724476264714,-3192.24,0.00013698,2]
[335751578,1724476264725,-3192.24,0.00013698,2]
[335751579,1724476264734,-3192.24,0.00013698,2]
[335751580,1724476264744,-500.0,0.00013698,2]
[335751581,1724476264755,-3192.24,0.00013698,2]
[335751582,1724476264765,-3192.24,0.00013698,2]
[335751583,1724476264774,-3192.24,0.00013698,2]
[335751584,1724476264783,-3192.24,0.00013698,2]
[335751585,1724476264793,-3192.24,0.00013698,2]
[335751586,1724476264802,-3192.24,0.00013698,2]
[335751587,1724476264812,-17444.676,0.00013927,2]
[335751588,1724476264822,-432.28083668,0.00013972,2]
[335751589,1724476264831,-1303.58,0.00013972,2]
[335751590,1724476264841,-1135.22,0.00013972,2]
[335751591,1724476264851,-13914.56,0.00013972,2]
[335751592,1724476264862,-2016.11,0.00013972,2]
[335751593,1724476264872,-500.0,0.00013972,2]
[335751594,1724476264882,-500.0,0.00013972,2]
[335751595,1724476264891,-650.059302,0.00013972,2]
[335751596,1724476264901,-151.0,0.00013972,2]
[335751597,1724476264911,-650.059302,0.00013972,2]
[335751598,1724476264921,-500.0,0.00013972,2]
[335751599,1724476264932,-151.0,0.00013972,2]
[335751600,1724476264943,-151.0,0.00013972,2]
[335751601,1724476264954,-650.059302,0.00013972,2]
[335751602,1724476264964,-650.059302,0.00013972,2]
[335751603,1724476264973,-650.059302,0.00013972,2]
[335751604,1724476264982,-650.059302,0.00013972,2]
[335751605,1724476264993,-500.0,0.00013972,2]
[335751606,1724476265003,-500.0,0.00013973,2]
[335751607,1724476265013,-500.30061195,0.00013973,2]
[335751608,1724476265023,-500.0,0.00013973,2]
[335751609,1724476265032,-154.80026742,0.00013973,2]
[335751610,1724476265041,-504.78112766,0.00013973,2]
[335751611,1724476265051,-200.35146949,0.00013973,2]
[335751612,1724476265060,-500.0,0.00013973,2]
[335751613,1724476265070,-200.32057347,0.00013973,2]
[335751614,1724476265079,-154.72922386,0.00014,2]
[335751615,1724476265089,-597.33206656,0.00014,4]
[335751616,1724476265099,-13367.46768411,0.00014,2]
[335751617,1724476265210,-961.50115071,0.00014,2]
[335751619,1724476265808,-3192.24,0.00013698,2]
[335751620,1724476265818,-3192.24,0.00013698,2]
[335751621,1724476265827,-3192.24,0.00013698,2]
[335751622,1724476265836,-3188.65567567,0.00013698,2]
[335751629,1724476312419,5783.0,0.00027,120]
[335751656,1724476764731,1572.76931406,0.00025,60]
[335751659,1724476782309,1330.80480421,0.00025,60]
[335751661,1724476801618,1451.78705913,0.00025,60]
[335751671,1724476968823,999.0,0.00027,120]
[335751680,1724477027110,500.0,0.00027,120]
[335751687,1724477058175,500.0,0.00027,120]
[335751689,1724477067645,500.0,0.00027,120]
[335751693,1724477092978,500.0,0.00027,120]
[335751696,1724477099555,500.0,0.00027,120]
[335751701,1724477109225,500.0,0.00027,120]
[335751704,1724477116270,500.0,0.00027,120]
[335751705,1724477117971,2000.0,0.00027,120]
[335751707,1724477127604,276.0,0.00027,120]
[335751709,1724477132144,-4079.8978797,0.00012356,2]
[335751721,1724477236152,-154.8463532,0.00012356,2]
[335751722,1724477236174,-3514.67191071,0.00012551,2]
[335751737,1724477319470,34539.53864766,0.0001,2]
[335751743,1724477348277,-250.0,0.00012225,2]
[335751745,1724477348300,-250.0,0.00012259,2]
[335751746,1724477348320,-250.0,0.00012292,2]
[335751747,1724477348341,-250.0,0.00012326,2]
[335751748,1724477348361,-250.0,0.00012359,2]
[335751749,1724477348383,-250.0,0.00012393,2]
[335751750,1724477348405,-250.0,0.00012426,2]
[335751751,1724477348426,-250.0,0.0001246,2]
[335751752,1724477348450,-250.0,0.00012494,2]
[335751753,1724477348470,-250.0,0.00012527,2]
[335751754,1724477348490,-250.0,0.00012561,2]
[335751784,1724477413180,701.62,0.00010959,2]
[335751786,1724477423658,584.68,0.00010959,2]
[335751792,1724477434156,487.24,0.00010959,2]
[335751818,1724477438402,-250.0,0.00012594,2]
[335751820,1724477438411,-250.0,0.00012628,2]
[335751823,1724477438421,-2143.43585731,0.00012629,2]
[335751824,1724477438431,-250.0,0.00012661,2]
[335751826,1724477438440,-250.0,0.00012695,2]
[335751828,1724477438449,-250.0,0.00012728,2]
[335751830,1724477438458,-250.0,0.00012762,2]
[335751832,1724477438467,-250.0,0.00012795,2]
[335751835,1724477438477,-250.0,0.00012829,2]
[335751837,1724477438487,-250.0,0.00012862,2]
[335751839,1724477438497,-521.48215482,0.00012886,2]
[335751841,1724477438514,-301.6333299,0.00012898,2]
[335751843,1724477438525,-48.48143518,0.00012898,2]
[335751846,1724477438538,-106.54994428,0.00012898,2]
[335751848,1724477438549,-520.80380986,0.00012898,2]
[335751850,1724477438558,-154.87881542,0.00012898,2]
[335751852,1724477438567,-300.0,0.00012933,2]
[335751854,1724477438576,-300.0,0.00012933,2]
[335751856,1724477438586,-676.75620768,0.00012934,2]
[335751858,1724477438596,-161.80668771,0.00012934,2]
[335751860,1724477438605,-413.79261446,0.00012934,2]
[335751862,1724477438614,-493.47055315,0.00012971,2]
[335751864,1724477438623,-154.76012181,0.00012971,2]
[335751866,1724477438633,-215.62694452,0.00012971,2]
[335751868,1724477438643,-174.92435112,0.00012971,2]
[335751870,1724477438652,-862.74516786,0.00013,2]
[335751872,1724477438661,-284.584462,0.00013208,2]
[335751874,1724477438670,-153.0,0.00013208,2]
[335751876,1724477438680,-153.0,0.00013208,2]
[335751878,1724477438690,-818.1008632,0.000134,2]
[335751880,1724477438700,-155.50008548,0.00013497,2]
[335751882,1724477438709,-218.13734486,0.00013537,2]
[335751884,1724477438718,-409.212231,0.00013538,2]
[335751886,1724477438727,-409.212231,0.00013538,2]
[335751888,1724477438736,-414.5927188,0.00013538,2]
[335751890,1724477438746,-409.212231,0.00013538,2]
[335751892,1724477438755,-818.2626626,0.00013538,2]
[335751894,1724477438766,-409.212231,0.00013538,2]
[335751896,1724477438775,-409.212231,0.00013538,2]
[335751897,1724477438784,-409.212231,0.00013538,2]
[335751898,1724477438794,-409.212231,0.00013538,2]
[335751899,1724477438803,-409.212231,0.00013538,2]
[335751900,1724477438812,-195.1045503,0.00013538,2]
[335751901,1724477438822,-409.212231,0.00013538,2]
[335751902,1724477438831,-409.212231,0.00013538,2]
[335751903,1724477438840,-409.212231,0.00013538,2]
[335751904,1724477438850,-409.212231,0.00013538,2]
[335751905,1724477438860,-409.212231,0.00013538,2]
[335751906,1724477438869,-934.07929589,0.00013597,2]
[335751907,1724477438879,-1100.27586582,0.00013598,2]
[335751908,1724477438888,-150.112233,0.000136,2]
[335751909,1724477438897,-150.112233,0.000136,2]
[335751910,1724477438908,-15044.20899808,0.00013688,2]
[335751911,1724477438917,-817.77880387,0.00013697,2]
[335751912,1724477438926,-1435.12924868,0.00013697,2]
[335751913,1724477438937,-500.0,0.00013698,2]
[335751914,1724477438946,-500.0,0.00013698,2]
[335751915,1724477438956,-486.75977515,0.00013698,2]
[335751916,1724477438966,-500.0,0.00013698,2]
[335751917,1724477438975,-600.15389351,0.00013698,2]
[335751918,1724477438985,-500.0,0.00013698,2]
[335751919,1724477438994,-219.94287553,0.00013698,2]
[335751920,1724477439004,-500.0,0.00013698,2]
[335751921,1724477439014,-523.79606218,0.00013698,2]
[335751922,1724477439023,-500.0,0.00013698,2]
[335751923,1724477439032,-500.0,0.00013698,2]
[335751924,1724477439042,-500.0,0.00013698,2]
[335751925,1724477439052,-500.0,0.00013698,2]
[335751926,1724477439065,-500.0,0.00013698,2]
[335751927,1724477439074,-500.0,0.00013698,2]
[335751928,1724477439083,-161.54525544,0.00013698,2]
[335751929,1724477439093,-692.23377423,0.00013698,2]
[335751930,1724477439104,-692.23377423,0.00013698,2]
[335751931,1724477439114,-692.23377423,0.00013698,2]
[335751932,1724477439125,-692.23377423,0.00013698,2]
[335751933,1724477439137,-692.23377423,0.00013698,2]
[335751934,1724477439148,-692.23377423,0.00013698,2]
[335751935,1724477439159,-692.23377423,0.00013698,2]
[335751936,1724477439169,-692.23377423,0.00013698,2]
[335751937,1724477439178,-692.23377423,0.00013698,2]
[335751938,1724477439188,-692.23377423,0.00013698,2]
[335751939,1724477439199,-692.23377423,0.00013698,2]
[335751940,1724477439211,-692.23377423,0.00013698,2]
[335751941,1724477439221,-692.23377423,0.00013698,2]
[335751942,1724477439230,-500.0,0.00013698,2]
[335751943,1724477439239,-500.0,0.00013698,2]
[335751944,1724477439249,-500.0,0.00013698,2]
[335751945,1724477439259,-762.78837044,0.00013698,2]
[335751946,1724477439268,-762.78837044,0.00013698,2]
[335751947,1724477439278,-762.78837044,0.00013698,2]
[335751948,1724477439287,-762.78837044,0.00013698,2]
[335751949,1724477439296,-762.78837044,0.00013698,2]
[335751950,1724477439305,-500.0,0.00013698,2]
[335751951,1724477439315,-500.0,0.00013698,2]
[335751952,1724477439325,-500.0,0.00013698,2]
[335751953,1724477439334,-515.1272377,0.00013698,2]
[335751954,1724477439344,-500.0,0.00013698,2]
[335751955,1724477439353,-509.18196234,0.00013698,2]
[335751956,1724477439363,-500.0,0.00013698,2]
[335751957,1724477439373,-500.0,0.00013698,2]
[335751958,1724477439382,-500.0,0.00013698,2]
[335751959,1724477439393,-500.0,0.00013698,2]
[335751960,1724477439402,-500.0,0.00013698,2]
[335751961,1724477439412,-500.0,0.00013698,2]
[335751962,1724477439423,-500.0,0.00013698,2]
[335751963,1724477439434,-500.0,0.00013698,2]
[335751964,1724477439445,-500.0,0.00013698,2]
[335751965,1724477439455,-500.0,0.00013698,2]
[335751966,1724477439476,-500.0,0.00013698,2]
[335751967,1724477439487,-500.0,0.00013698,2]
[335751968,1724477439497,-500.0,0.00013698,2]
[335751969,1724477439508,-500.0,0.00013698,2]
[335751970,1724477439520,-500.0,0.00013698,2]
[335751971,1724477439530,-500.0,0.00013698,2]
[335751972,1724477439542,-500.0,0.00013698,2]
[335751973,1724477439552,-500.0,0.00013698,2]
[335751974,1724477439566,-500.0,0.00013698,2]
[335751975,1724477439576,-500.0,0.00013698,2]
[335751976,1724477439586,-861.97,0.00013698,2]
[335751977,1724477439595,-500.0,0.00013698,2]
[335751978,1724477439605,-500.0,0.00013698,2]
[335751979,1724477439614,-653.29,0.00013698,2]
[335751980,1724477439624,-500.0,0.00013698,2]
[335751981,1724477439634,-500.0,0.00013698,2]
[335751982,1724477439644,-500.0,0.00013698,2]
[335751983,1724477439654,-500.0,0.00013698,2]
[335751984,1724477439664,-500.0,0.00013698,2]
[335751985,1724477439674,-965.14,0.00013698,2]
[335751986,1724477439683,-500.0,0.00013698,2]
[335751987,1724477439693,-500.0,0.00013698,2]
[335751988,1724477439703,-500.0,0.00013698,2]
[335751989,1724477439712,-500.0,0.00013698,2]
[335751990,1724477439722,-500.0,0.00013698,2]
[335751991,1724477439732,-500.0,0.00013698,2]
[335751992,1724477439741,-500.0,0.00013698,2]
[335751993,1724477439751,-500.0,0.00013698,2]
[335751994,1724477439761,-500.0,0.00013698,2]
[335751995,1724477439771,-500.0,0.00013698,2]
[335751996,1724477439781,-500.0,0.00013698,2]
[335751997,1724477439791,-500.0,0.00013698,2]
[335751998,1724477439801,-500.0,0.00013698,2]
[335751999,1724477439812,-500.0,0.00013698,2]
[335752000,1724477439821,-552.49,0.00013698,2]
[335752001,1724477439835,-500.0,0.00013698,2]
[335752002,1724477439846,-1040.24,0.00013698,2]
[335752003,1724477439858,-605.36,0.00013698,2]
[335752004,1724477439870,-500.0,0.00013698,2]
[335752005,1724477439883,-500.0,0.00013698,2]
[335752006,1724477439894,-664.13,0.00013698,2]
[335752007,1724477439905,-500.0,0.00013698,2]
[335752008,1724477439917,-500.85815529,0.00013698,2]
[335752009,1724477439929,-501.5733447,0.00013698,2]
[335752010,1724477439939,-500.0,0.00013698,2]
[335752011,1724477439949,-430.44001007,0.00013698,2]
[335752012,1724477439961,-500.0,0.00013698,2]
[335752013,1724477439971,-500.0,0.00013698,2]
[335752014,1724477439981,-500.0,0.00013698,2]
[335752015,1724477439991,-159.93009355,0.00013698,2]
[335752016,1724477440001,-500.0,0.00013698,2]
[335752017,1724477440011,-500.0,0.00013698,2]
[335752018,1724477440020,-500.0,0.00013698,2]
[335752019,1724477440030,-500.0,0.00013698,2]
[335752020,1724477440040,-207.3916535,0.00013698,2]
[335752021,1724477440049,-500.0,0.00013698,2]
[335752022,1724477440069,-500.0,0.00013698,2]
[335752024,1724477440080,-534.06379751,0.00013698,2]
[335752025,1724477440090,-500.0,0.00013698,2]
[335752027,1724477440100,-500.0,0.00013698,2]
[335752029,1724477440110,-343.97804973,0.00013698,2]
[335752030,1724477440120,-500.0,0.00013698,2]
[335752032,1724477440131,-500.0,0.00013698,2]
[335752033,1724477440140,-500.0,0.00013698,2]
[335752035,1724477440150,-500.0,0.00013698,2]
[335752037,1724477440161,-537.11,0.00013698,2]
[335752039,1724477440170,-150.0,0.00013698,2]
[335752041,1724477440180,-500.0,0.00013698,2]
[335752042,1724477440190,-772.25,0.00013698,2]
[335752044,1724477440200,-670.0,0.00013698,2]
[335752046,1724477440210,-500.0,0.00013698,2]
[335752048,1724477440220,-500.0,0.00013698,2]
[335752049,1724477440230,-500.0,0.00013698,2]
[335752051,1724477440241,-500.0,0.00013698,2]
[335752053,1724477440251,-449.81063824,0.00013698,2]
[335752054,1724477440262,-500.0,0.00013698,2]
[335752057,1724477440271,-500.0,0.00013698,2]
[335752059,1724477440281,-500.0,0.00013698,2]
[335752061,1724477440290,-500.0,0.00013698,2]
[335752063,1724477440300,-510.55,0.00013698,2]
[335752064,1724477440309,-500.0,0.00013698,2]
[335752066,1724477440319,-500.0,0.00013698,2]
[335752068,1724477440329,-500.0,0.00013698,2]
[335752069,1724477440338,-500.0,0.00013698,2]
[335752071,1724477440348,-500.0,0.00013698,2]
[335752072,1724477440357,-500.0,0.00013698,2]
[335752073,1724477440367,-943.71,0.00013698,2]
[335752074,1724477440377,-500.0,0.00013698,2]
[335752075,1724477440387,-500.0,0.00013698,2]
[335752077,1724477440397,-500.0,0.00013698,2]
[335752079,1724477440407,-500.0,0.00013698,2]
[335752080,1724477440417,-500.0,0.00013698,2]
[335752083,1724477440428,-521.09788376,0.00013698,2]
[335752085,1724477440437,-500.0,0.00013698,2]
[335752088,1724477440447,-500.0,0.00013698,2]
[335752091,1724477440456,-500.0,0.00013698,2]
[335752093,1724477440466,-500.0,0.00013698,2]
[335752095,1724477440475,-500.0,0.00013698,2]
[335752096,1724477440486,-500.0,0.00013698,2]
[335752098,1724477440496,-565.6,0.00013698,2]
[335752099,1724477440506,-500.0,0.00013698,2]
[335752100,1724477440516,-500.0,0.00013698,2]
[335752101,1724477440526,-772.37,0.00013698,2]
[335752102,1724477440538,-500.0,0.00013698,2]
[335752103,1724477440548,-500.0,0.00013698,2]
[335752104,1724477440559,-500.0,0.00013698,2]
[335752105,1724477440570,-618.28,0.00013698,2]
[335752106,1724477440580,-468.86601935,0.00013698,2]
[335752107,1724477440590,-500.0,0.00013698,2]
[335752108,1724477440600,-500.0,0.00013698,2]
[335752109,1724477440610,-500.0,0.00013698,2]
[335752110,1724477440620,-500.0,0.00013698,2]
[335752111,1724477440630,-500.0,0.00013698,2]
[335752112,1724477440639,-500.0,0.00013698,2]
[335752113,1724477440649,-500.0,0.00013698,2]
[335752114,1724477440659,-929.91,0.00013698,2]
[335752115,1724477440668,-500.0,0.00013698,2]
[335752116,1724477440678,-500.0,0.00013698,2]
[335752117,1724477440692,-500.0,0.00013698,2]
[335752118,1724477440703,-500.0,0.00013698,2]
[335752119,1724477440712,-1218.26,0.00013698,2]
[335752120,1724477440722,-500.0,0.00013698,2]
[335752121,1724477440732,-653.94,0.00013698,2]
[335752122,1724477440742,-500.0,0.00013698,2]
[335752123,1724477440752,-500.0,0.00013698,2]
[335752124,1724477440763,-500.0,0.00013698,2]
[335752125,1724477440774,-500.0,0.00013698,2]
[335752126,1724477440784,-500.0,0.00013698,2]
[335752127,1724477440794,-500.0,0.00013698,2]
[335752128,1724477440804,-1070.7,0.00013698,2]
[335752129,1724477440813,-500.0,0.00013698,2]
[335752130,1724477440823,-500.0,0.00013698,2]
[335752131,1724477440833,-789.84,0.00013698,2]
[335752132,1724477440844,-500.0,0.00013698,2]
[335752133,1724477440854,-500.0,0.00013698,2]
[335752134,1724477440865,-500.0,0.00013698,2]
[335752135,1724477440875,-500.0,0.00013698,2]
[335752136,1724477440885,-500.0,0.00013698,2]
[335752137,1724477440894,-500.0,0.00013698,2]
[335752138,1724477440904,-500.0,0.00013698,2]
[335752139,1724477440915,-500.0,0.00013698,2]
[335752140,1724477440925,-500.0,0.00013698,2]
[335752141,1724477440936,-500.0,0.00013698,2]
[335752142,1724477440946,-193.80537047,0.00013698,2]
[335752144,1724477440956,-500.0,0.00013698,2]
[335752145,1724477440967,-500.0,0.00013698,2]
[335752146,1724477440977,-500.0,0.00013698,2]
[335752147,1724477440986,-500.0,0.00013698,2]
[335752148,1724477440996,-500.0,0.00013698,2]
[335752149,1724477441006,-500.0,0.00013698,2]
[335752150,1724477441016,-576.46,0.00013698,2]
[335752151,1724477441026,-500.0,0.00013698,2]
[335752152,1724477441037,-500.0,0.00013698,2]
[335752153,1724477441047,-504.03413542,0.00013698,2]